bitfinex/quotes_BTCUSD_20241003
["timestamp","ask_amount","ask_price","bid_price","bid_amount"]
[1727922207933,0.31523058,61291.0,61290.0,0.003636]
[1727922209246,0.43766097,61291.0,61290.0,0.003636]
[1727922209459,0.31523058,61291.0,61290.0,0.003636]
[1727922209967,0.28965017,61291.0,61290.0,0.003636]
[1727922211042,0.43656532,61291.0,61290.0,0.003636]
[1727922211491,0.43653439,61291.0,61290.0,0.003636]
[1727922211918,0.28965017,61291.0,61290.0,0.003636]
[1727922212844,0.33823193,61291.0,61290.0,0.003636]
[1727922213494,0.48511615,61291.0,61290.0,0.003636]
[1727922219146,0.49393242,61291.0,61290.0,0.003636]
[1727922219566,0.57953859,61291.0,61290.0,0.003636]
[1727922220229,0.58153859,61291.0,61290.0,0.003636]
[1727922220642,0.57953859,61291.0,61290.0,0.003636]
[1727922221050,0.58153859,61291.0,61290.0,0.003636]
[1727922221257,0.55595683,61291.0,61290.0,0.003636]
[1727922221749,0.263193,61277.0,61272.0,0.0813]
[1727922221984,0.263193,61277.0,61271.0,0.001636]
[1727922221985,0.286193,61277.0,61271.0,0.001636]
[1727922222202,0.52073484,61277.0,61271.0,0.001636]
[1727922222430,0.163206,61272.0,61271.0,0.001636]
[1727922222646,0.34872028,61272.0,61271.0,0.001636]
[1727922222944,0.35851653,61272.0,61271.0,0.001636]
[1727922223415,0.38360842,61272.0,61271.0,0.001636]
[1727922223627,0.43158883,61272.0,61271.0,0.001636]
[1727922223858,0.52648883,61272.0,61271.0,0.001636]
[1727922224292,0.288209,61271.0,61260.0,0.24491195]
[1727922224522,0.002,61267.0,61260.0,0.24491195]
[1727922224764,0.42180658,61267.0,61260.0,0.24491195]
[1727922224974,0.70414534,61267.0,61260.0,0.24491195]
[1727922225191,0.56723915,61267.0,61260.0,0.24491195]
[1727922225413,0.42954216,61267.0,61260.0,0.24491195]
[1727922225622,0.43154216,61267.0,61260.0,0.24491195]
[1727922225840,0.43154216,61267.0,61254.0,0.001636]
[1727922226054,0.59217555,61267.0,61254.0,0.001636]
[1727922226498,0.44554216,61267.0,61254.0,0.001636]
[1727922226746,0.53420024,61267.0,61254.0,0.001636]
[1727922226967,0.163251,61255.0,61254.0,0.001636]
[1727922227188,0.41983758,61255.0,61254.0,0.001636]
[1727922227407,0.42951011,61255.0,61254.0,0.001636]
[1727922228048,0.4551065,61255.0,61254.0,0.001636]
[1727922228268,0.4681065,61255.0,61254.0,0.001636]
[1727922228683,0.63129321,61255.0,61254.0,0.001636]
[1727922228886,0.61829321,61255.0,61254.0,0.001636]
[1727922229306,0.59469682,61255.0,61254.0,0.001636]
[1727922229517,0.59269682,61255.0,61254.0,0.001636]
[1727922229725,0.60569682,61255.0,61254.0,0.001636]
[1727922229935,0.61969682,61255.0,61254.0,0.001636]
[1727922230141,0.60569682,61255.0,61254.0,0.001636]
[1727922230608,0.61969682,61255.0,61254.0,0.001636]
[1727922230996,0.60669682,61255.0,61254.0,0.001636]
[1727922231211,0.60869682,61255.0,61254.0,0.001636]
[1727922231416,0.45751011,61255.0,61254.0,0.001636]
[1727922232275,0.48310723,61255.0,61254.0,0.001636]
[1727922232498,0.43451011,61255.0,61254.0,0.001636]
[1727922232716,0.43451011,61255.0,61254.0,0.078336]
[1727922233797,0.42051011,61255.0,61254.0,0.078336]
[1727922234005,0.41451011,61255.0,61254.0,0.078336]
[1727922234248,0.41951011,61255.0,61254.0,0.078336]
[1727922235638,0.44010557,61255.0,61254.0,0.078336]
[1727922235869,0.41051011,61255.0,61254.0,0.078336]
[1727922236099,0.17692353,61255.0,61254.0,0.078336]
[1727922236334,0.18492353,61255.0,61254.0,0.173036]
[1727922237041,0.17692353,61255.0,61254.0,0.173036]
[1727922237261,0.17892353,61255.0,61254.0,0.173036]
[1727922237478,0.01367253,61255.0,61254.0,0.33629]
[1727922237694,0.01367253,61255.0,61254.0,0.173036]
[1727922237945,0.01267253,61255.0,61254.0,0.173036]
[1727922238410,0.01367253,61255.0,61254.0,0.173036]
[1727922238857,0.17692353,61255.0,61254.0,0.173036]
[1727922239073,0.20251636,61255.0,61254.0,0.173036]
[1727922240219,0.19951636,61255.0,61254.0,0.173036]
[1727922240444,0.19851636,61255.0,61254.0,0.173036]
[1727922240678,0.19851636,61255.0,61254.0,0.33929]
[1727922240679,0.03526536,61255.0,61254.0,0.33929]
[1727922241115,0.02559283,61255.0,61254.0,0.33629]
[1727922241329,0.16324,61260.0,61256.0,0.163249]
[1727922241547,0.163245,61258.0,61257.0,0.0769]
[1727922241761,0.0096782,61259.0,61257.0,0.0769]
[1727922242233,0.17292268,61258.0,61257.0,0.0769]
[1727922244459,0.19851448,61258.0,61257.0,0.0789]
[1727922244930,0.33210106,61258.0,61257.0,0.0789]
[1727922245157,0.33210106,61258.0,61257.0,0.0769]
[1727922245373,0.33210106,61258.0,61257.0,0.0789]
[1727922245867,0.30650926,61258.0,61257.0,0.0789]
[1727922246313,0.30950926,61258.0,61257.0,0.0789]
[1727922246530,0.30950926,61258.0,61257.0,0.002]
[1727922246752,0.163251,61255.0,61254.0,0.001636]
[1727922246984,0.27294636,61255.0,61254.0,0.001636]
[1727922247205,0.40184499,61255.0,61254.0,0.001636]
[1727922248057,0.40684499,61255.0,61254.0,0.001636]
[1727922248494,0.40184499,61255.0,61254.0,0.001636]
[1727922248956,0.43644176,61255.0,61254.0,0.001636]
[1727922249619,0.45944176,61255.0,61254.0,0.001636]
[1727922249831,0.47344176,61255.0,61254.0,0.001636]
[1727922250260,0.44784499,61255.0,61254.0,0.001636]
[1727922250478,0.43884499,61255.0,61254.0,0.001636]
[1727922250926,0.45184499,61255.0,61254.0,0.001636]
[1727922251349,0.43884499,61255.0,61254.0,0.001636]
[1727922251577,0.45184499,61255.0,61254.0,0.001636]
[1727922252003,0.43884499,61255.0,61254.0,0.001636]
[1727922252517,0.45184499,61255.0,61254.0,0.001636]
[1727922252975,0.43784499,61255.0,61254.0,0.001636]
[1727922253197,0.45184499,61255.0,61254.0,0.001636]
[1727922253459,0.33454323,61255.0,61254.0,0.001636]
[1727922253621,0.29594636,61255.0,61254.0,0.001636]
[1727922253896,0.30994636,61255.0,61254.0,0.001636]
[1727922254119,0.32194636,61255.0,61254.0,0.001636]
[1727922254586,0.30994636,61255.0,61254.0,0.001636]
[1727922255026,0.32094636,61255.0,61254.0,0.001636]
[1727922255254,0.29794636,61255.0,61254.0,0.001636]
[1727922255478,0.28394636,61255.0,61254.0,0.001636]
[1727922255698,0.28694636,61255.0,61254.0,0.001636]
[1727922256861,0.32354145,61255.0,61254.0,0.001636]
[1727922257083,0.29794636,61255.0,61254.0,0.001636]
[1727922257356,0.28694636,61255.0,61254.0,0.001636]
[1727922257586,0.29794636,61255.0,61254.0,0.001636]
[1727922260180,0.32354141,61255.0,61254.0,0.001636]
[1727922262905,0.30954141,61255.0,61254.0,0.001636]
[1727922263145,0.29854141,61255.0,61254.0,0.001636]
[1727922263389,0.31154141,61255.0,61254.0,0.001636]
[1727922263638,0.30354141,61255.0,61254.0,0.001636]
[1727922263874,0.29854141,61255.0,61254.0,0.001636]
[1727922264157,0.30254141,61255.0,61254.0,0.001636]
[1727922264652,0.01369536,61255.0,61254.0,0.082736]
[1727922264900,0.01369536,61255.0,61254.0,0.33649]
[1727922265161,0.01369536,61255.0,61254.0,0.36922]
[1727922265408,0.011,61255.0,61254.0,0.36922]
[1727922265651,0.004,61255.0,61254.0,0.36922]
[1727922266671,0.001,61255.0,61254.0,0.36922]
[1727922266915,0.163239,61260.0,61257.0,0.11053]
[1727922267173,0.163235,61262.0,61258.0,0.163241]
[1727922267423,0.01157226,61259.0,61258.0,0.240041]
[1727922267663,0.326461,61264.0,61258.0,0.240041]
[1727922267664,0.01157226,61261.0,61258.0,0.0768]
[1727922267902,0.163239,61260.0,61258.0,0.0768]
[1727922268139,0.02559066,61259.0,61258.0,0.0768]
[1727922268379,0.17481126,61260.0,61258.0,0.0768]
[1727922268623,0.01157403,61259.0,61258.0,0.0768]
[1727922269057,0.01157403,61259.0,61258.0,0.0778]
[1727922269829,0.01157403,61259.0,61258.0,0.0788]
[1727922270076,0.01157403,61259.0,61258.0,0.0768]
[1727922270311,0.01257403,61259.0,61258.0,0.0788]
[1727922270805,0.01257403,61259.0,61258.0,0.0778]
[1727922271040,0.17581503,61259.0,61258.0,0.0778]
[1727922271273,0.17681503,61259.0,61258.0,0.0788]
[1727922271514,0.20240636,61259.0,61258.0,0.0788]
[1727922271755,0.03916536,61259.0,61258.0,0.0778]
[1727922271996,0.03716536,61259.0,61258.0,0.0768]
[1727922272763,0.01157403,61259.0,61258.0,0.0768]
[1727922273003,0.17481503,61259.0,61258.0,0.0768]
[1727922273484,0.17481503,61259.0,61258.0,0.0778]
[1727922273485,0.17581503,61259.0,61258.0,0.0778]
[1727922274009,0.17481503,61259.0,61258.0,0.0768]
[1727922274281,0.17481503,61259.0,61258.0,0.0778]
[1727922274282,0.17581503,61259.0,61258.0,0.0778]
[1727922275015,0.17481503,61259.0,61258.0,0.0768]
[1727922275248,0.17481503,61259.0,61258.0,0.0778]
[1727922275681,0.20040635,61259.0,61258.0,0.0778]
[1727922275895,0.17481503,61259.0,61258.0,0.0778]
[1727922276592,0.17481503,61259.0,61258.0,0.0768]
[1727922276805,0.17481503,61259.0,61258.0,0.0778]
[1727922278324,0.17481503,61259.0,61258.0,0.0768]
[1727922278532,0.17581503,61259.0,61258.0,0.0768]
[1727922278746,0.17481503,61259.0,61258.0,0.0768]
[1727922279180,0.2014065,61259.0,61258.0,0.0768]
[1727922279829,0.2014065,61259.0,61258.0,0.0778]
[1727922280899,0.2014065,61259.0,61258.0,0.001]
[1727922281602,0.2014065,61259.0,61254.0,0.083836]
[1727922281603,0.163251,61255.0,61254.0,0.001636]
[1727922281819,0.29683758,61255.0,61254.0,0.001636]
[1727922282036,0.3084816,61255.0,61254.0,0.001636]
[1727922282936,0.3164816,61255.0,61254.0,0.001636]
[1727922283150,0.3084816,61255.0,61254.0,0.001636]
[1727922283351,0.3164816,61255.0,61254.0,0.001636]
[1727922283769,0.3214816,61255.0,61254.0,0.001636]
[1727922285152,0.44707671,61255.0,61254.0,0.001636]
[1727922285385,0.54940566,61255.0,61254.0,0.001636]
[1727922285592,0.44707671,61255.0,61254.0,0.001636]
[1727922286242,0.64240861,61255.0,61254.0,0.001636]
[1727922286466,0.66540861,61255.0,61254.0,0.001636]
[1727922286680,0.74210861,61255.0,61254.0,0.001636]
[1727922286892,0.76651658,61255.0,61254.0,0.001636]
[1727922287103,0.80127235,61255.0,61254.0,0.001636]
[1727922287767,0.80127235,61255.0,61248.0,0.000818]
[1727922287768,0.263267,61249.0,61248.0,0.000818]
[1727922288049,0.50457949,61249.0,61248.0,0.000818]
[1727922288260,0.50456838,61249.0,61248.0,0.000818]
[1727922288469,0.66775509,61249.0,61248.0,0.000818]
[1727922288886,0.59457446,61249.0,61248.0,0.000818]
[1727922289329,0.66775663,61249.0,61248.0,0.000818]
[1727922289538,0.67475663,61249.0,61248.0,0.000818]
[1727922289747,0.67175663,61249.0,61248.0,0.000818]
[1727922290233,0.66775663,61249.0,61248.0,0.000818]
[1727922290658,0.69212892,61249.0,61248.0,0.000818]
[1727922291087,0.60757446,61249.0,61248.0,0.000818]
[1727922291301,0.70511313,61249.0,61248.0,0.000818]
[1727922292223,0.60757446,61249.0,61248.0,0.000818]
[1727922292461,0.70709907,61249.0,61248.0,0.000818]
[1727922292728,0.8210607,61249.0,61248.0,0.000818]
[1727922292969,0.70207446,61249.0,61248.0,0.000818]
[1727922293455,0.81095142,61249.0,61248.0,0.000818]
[1727922293699,0.82395142,61249.0,61248.0,0.000818]
[1727922293975,0.79958001,61249.0,61248.0,0.000818]
[1727922294968,0.81558001,61249.0,61248.0,0.000818]
[1727922295397,0.71607446,61249.0,61248.0,0.000818]
[1727922295915,0.74367432,61249.0,61248.0,0.000818]
[1727922296833,0.71807446,61249.0,61248.0,0.000818]
[1727922297253,0.71607446,61249.0,61248.0,0.000818]
[1727922297465,0.78916871,61249.0,61248.0,0.000818]
[1727922297882,0.71607446,61249.0,61248.0,0.000818]
[1727922298529,0.76479381,61249.0,61248.0,0.000818]
[1727922300037,0.79039348,61249.0,61248.0,0.000818]
[1727922300241,0.53270677,61249.0,61248.0,0.000818]
[1727922300458,0.46098742,61249.0,61248.0,0.000818]
[1727922300674,0.32740084,61249.0,61248.0,0.000818]
[1727922301768,0.31340084,61249.0,61248.0,0.000818]
[1727922301978,0.34440084,61249.0,61248.0,0.000818]
[1727922302188,0.32340084,61249.0,61248.0,0.000818]
[1727922302391,0.49158755,61249.0,61248.0,0.000818]
[1727922302643,0.50558755,61249.0,61248.0,0.000818]
[1727922302847,0.49158755,61249.0,61248.0,0.000818]
[1727922303057,0.50058755,61249.0,61248.0,0.000818]
[1727922303262,0.51358755,61249.0,61248.0,0.000818]
[1727922307784,0.32740084,61249.0,61248.0,0.000818]
[1727922307998,0.32740084,61249.0,61248.0,0.082118]
[1727922308461,0.22740084,61249.0,61248.0,0.082118]
[1727922309116,0.21440084,61249.0,61248.0,0.082118]
[1727922309329,0.21440084,61249.0,61248.0,0.0813]
[1727922309542,0.21340084,61249.0,61248.0,0.077118]
[1727922309797,0.21740084,61249.0,61248.0,0.077118]
[1727922310312,0.20440084,61249.0,61248.0,0.077118]
[1727922310946,0.03713384,61249.0,61248.0,0.077118]
[1727922311165,0.20040084,61249.0,61248.0,0.174718]
[1727922311405,0.20340084,61249.0,61248.0,0.174718]
[1727922311858,0.20040084,61249.0,61248.0,0.174718]
[1727922312115,0.20240084,61249.0,61248.0,0.175718]
[1727922312332,0.20040084,61249.0,61248.0,0.175718]
[1727922312554,0.20040084,61249.0,61248.0,0.174718]
[1727922312768,0.17580117,61249.0,61248.0,0.177718]
[1727922313004,0.17580117,61249.0,61248.0,0.180718]
[1727922313224,0.01821451,61249.0,61248.0,0.180718]
[1727922313470,0.18048151,61249.0,61248.0,0.177718]
[1727922314202,0.18048151,61249.0,61248.0,0.174718]
[1727922314631,0.18048151,61249.0,61248.0,0.176718]
[1727922314836,0.18148151,61249.0,61248.0,0.178718]
[1727922315268,0.18048151,61249.0,61248.0,0.176718]
[1727922315731,0.18148151,61249.0,61248.0,0.178718]
[1727922315921,0.20707663,61249.0,61248.0,0.178718]
[1727922317963,0.20707663,61249.0,61248.0,0.179536]
[1727922319338,0.20707663,61249.0,61248.0,0.081936]
[1727922319808,0.20707663,61249.0,61240.0,0.196041]
[1727922319809,0.163329,61226.0,61225.0,0.97961583]
[1727922320027,0.46871284,61226.0,61225.0,0.97961583]
[1727922320245,0.263329,61226.0,61225.0,0.97961583]
[1727922320473,0.263329,61226.0,61216.0,0.97961583]
[1727922320474,0.163353,61217.0,61216.0,0.97961583]
[1727922320904,0.326719,61215.0,61209.0,0.98043383]
[1727922321127,0.16336,61215.0,61209.0,0.98043383]
[1727922321341,0.01802836,61214.0,61209.0,0.000818]
[1727922321597,0.16337,61211.0,61209.0,0.000818]
[1727922322052,0.01793609,61213.0,61209.0,0.000818]
[1727922322053,0.01794944,61210.0,61209.0,0.000818]
[1727922322511,0.32666,61226.0,61209.0,0.00378145]
[1727922322739,0.01796665,61210.0,61209.0,0.00478145]
[1727922323006,0.97961583,61217.0,61209.0,0.078318]
[1727922323508,0.01795676,61216.0,61209.0,0.078318]
[1727922323758,0.003,61215.0,61209.0,0.078318]
[1727922324007,0.01795676,61216.0,61209.0,0.077318]
[1727922324262,0.97961583,61217.0,61209.0,0.077318]
[1727922324478,0.01795676,61215.0,61209.0,0.077318]
[1727922324713,0.01798257,61216.0,61209.0,0.077318]
[1727922324941,0.01798406,61214.0,61209.0,0.077318]
[1727922325147,0.001,61215.0,61209.0,0.077318]
[1727922325440,0.163351,61218.0,61209.0,0.077318]
[1727922325441,0.01798109,61214.0,61209.0,0.077318]
[1727922325871,0.003,61217.0,61210.0,0.00326691]
[1727922326085,0.01797862,61213.0,61209.0,0.077318]
[1727922326296,0.166355,61217.0,61209.0,0.077318]
[1727922326506,0.01798031,61212.0,61209.0,0.077318]
[1727922326730,0.166355,61217.0,61210.0,0.00326694]
[1727922326941,0.01798212,61211.0,61210.0,0.00326694]
[1727922327208,0.163356,61216.0,61210.0,0.00326694]
[1727922327667,0.01798756,61215.0,61209.0,0.077318]
[1727922327887,0.04359749,61215.0,61209.0,0.077318]
[1727922328092,0.20695549,61215.0,61209.0,0.077318]
[1727922328306,0.001,61211.0,61209.0,0.077318]
[1727922328732,0.20695549,61215.0,61209.0,0.077318]
[1727922328733,0.01798532,61210.0,61209.0,0.077318]
[1727922329203,0.163366,61213.0,61209.0,0.077318]
[1727922329423,0.163365,61213.0,61209.0,0.077318]
[1727922329641,0.02560993,61215.0,61209.0,0.077318]
[1727922329642,0.017988,61212.0,61209.0,0.077318]
[1727922330001,0.163364,61213.0,61209.0,0.077318]
[1727922330209,0.18135797,61212.0,61209.0,0.077318]
[1727922330449,0.01799097,61212.0,61209.0,0.077318]
[1727922330636,0.01799097,61212.0,61211.0,0.002]
[1727922330952,0.02560993,61215.0,61214.0,0.163361]
[1727922331155,0.02560993,61215.0,61214.0,0.21350377]
[1727922331385,0.02560993,61215.0,61214.0,0.0799]
[1727922331515,0.04055271,61215.0,61214.0,0.0799]
[1727922331716,0.4489587,61215.0,61214.0,0.0799]
[1727922331925,0.17830078,61215.0,61214.0,0.0799]
[1727922332132,0.163369,61211.0,61210.0,0.000818]
[1727922332573,0.42339961,61211.0,61210.0,0.000818]
[1727922332774,0.17835162,61211.0,61210.0,0.000818]
[1727922334428,0.18235162,61211.0,61210.0,0.000818]
[1727922334639,0.17935162,61211.0,61210.0,0.000818]
[1727922334840,0.17835162,61211.0,61210.0,0.000818]
[1727922335041,0.18435162,61211.0,61210.0,0.000818]
[1727922335277,0.20796253,61211.0,61210.0,0.000818]
[1727922336587,0.20396253,61211.0,61210.0,0.000818]
[1727922336804,0.20996253,61211.0,61210.0,0.000818]
[1727922337012,0.21396253,61211.0,61210.0,0.000818]
[1727922343952,0.02498262,61211.0,61210.0,0.245489]
[1727922344217,0.02498262,61211.0,61210.0,0.082118]
[1727922344403,0.01,61211.0,61210.0,0.245489]
[1727922344661,0.02231549,61211.0,61210.0,0.245489]
[1727922345084,0.01631549,61211.0,61210.0,0.245489]
[1727922346172,0.01231549,61211.0,61210.0,0.245489]
[1727922346356,0.01731549,61211.0,61210.0,0.246489]
[1727922346574,0.005,61211.0,61210.0,0.246489]
[1727922346812,0.01732973,61211.0,61210.0,0.246489]
[1727922347030,0.001,61211.0,61210.0,0.246489]
[1727922347253,0.03993837,61211.0,61210.0,0.252489]
[1727922347461,0.02760864,61211.0,61210.0,0.252489]
[1727922347673,0.03793837,61211.0,61210.0,0.245489]
[1727922347869,0.03893837,61211.0,61210.0,0.247489]
[1727922348098,0.03993837,61211.0,61210.0,0.254489]
[1727922349164,0.03993837,61211.0,61210.0,0.091118]
[1727922349400,0.33691114,61211.0,61210.0,0.009818]
[1727922350745,0.20330737,61211.0,61210.0,0.009818]
[1727922352035,0.17769873,61211.0,61210.0,0.009818]
[1727922355147,0.20330898,61211.0,61210.0,0.009818]
[1727922356235,0.17769873,61211.0,61210.0,0.009818]
[1727922359575,0.203309,61211.0,61210.0,0.009818]
[1727922364382,0.01432973,61211.0,61210.0,0.009818]
[1727922364594,0.01432973,61211.0,61210.0,0.340889]
[1727922364812,0.24504799,61220.0,61219.0,0.331047]
[1727922365110,0.24504799,61220.0,61219.0,0.363797]
[1727922365350,0.24504799,61223.0,61219.0,0.20045]
[1727922365565,0.001636,61228.0,61219.0,0.20045]
[1727922365780,0.001636,61228.0,61226.0,0.0795]
[1727922366000,0.001636,61228.0,61226.0,0.242828]
[1727922366454,0.163326,61227.0,61226.0,0.0795]
[1727922367110,0.163326,61227.0,61226.0,0.0805]
[1727922367329,0.001636,61228.0,61226.0,0.0805]
[1727922367759,0.001636,61228.0,61226.0,0.0815]
[1727922368389,0.001636,61228.0,61226.0,0.0805]
[1727922368605,0.001636,61228.0,61226.0,0.0795]
[1727922368839,0.001636,61228.0,61219.0,0.0922]
[1727922368840,0.163345,61220.0,61219.0,0.03275]
[1727922369540,0.18895011,61220.0,61219.0,0.03275]
[1727922369989,0.02560511,61220.0,61219.0,0.196097]
[1727922370209,0.00640128,61220.0,61219.0,0.5453504]
[1727922370427,0.001,61220.0,61219.0,0.67244423]
[1727922370642,0.001636,61228.0,61227.0,0.341226]
[1727922370855,0.001636,61228.0,61227.0,0.47482977]
[1727922372145,0.002636,61228.0,61227.0,0.67676648]
[1727922372383,0.02560231,61234.0,61233.0,0.19606]
[1727922372600,0.049795,61240.0,61239.0,0.279144]
[1727922373052,0.02559662,61242.0,61241.0,0.196039]
[1727922374203,0.02559662,61242.0,61241.0,0.203039]
[1727922374417,0.163276,61246.0,61242.0,0.196035]
[1727922374641,0.163273,61248.0,61243.0,0.163283]
[1727922374873,0.40832099,61248.0,61243.0,0.163283]
[1727922375182,0.163273,61248.0,61243.0,0.163283]
[1727922375540,0.18886959,61247.0,61243.0,0.163283]
[1727922376170,0.18886959,61247.0,61243.0,0.326565]
[1727922376171,0.02559559,61247.0,61243.0,0.326565]
[1727922376397,0.02559559,61247.0,61243.0,0.329565]
[1727922376587,0.02559559,61247.0,61246.0,0.163275]
[1727922377025,0.02559559,61247.0,61246.0,0.242475]
[1727922378158,0.02559559,61247.0,61246.0,0.243475]
[1727922378384,0.02559559,61247.0,61246.0,0.37707877]
[1727922379268,0.02559559,61247.0,61246.0,0.41382877]
[1727922380126,0.02559559,61247.0,61246.0,0.40982877]
[1727922380373,0.02559559,61247.0,61246.0,0.40882877]
[1727922380586,0.02659559,61247.0,61246.0,0.41982877]
[1727922380800,0.02659559,61247.0,61246.0,0.42882877]
[1727922384463,0.02659559,61247.0,61246.0,0.295225]
[1727922386207,0.02659559,61247.0,61246.0,0.13195]
[1727922386449,0.18986859,61247.0,61246.0,0.13195]
[1727922386755,0.02659559,61247.0,61246.0,0.05275]
[1727922387726,0.18986859,61247.0,61246.0,0.05275]
[1727922387935,0.02659559,61247.0,61246.0,0.05275]
[1727922388775,0.18986859,61247.0,61246.0,0.05275]
[1727922389661,0.18986859,61247.0,61246.0,0.02]
[1727922389903,0.02659559,61247.0,61246.0,0.02]
[1727922390143,0.02823159,61247.0,61246.0,0.02]
[1727922390723,0.02823159,61247.0,61246.0,0.011]
[1727922391447,0.02823159,61247.0,61246.0,0.012]
[1727922391682,0.19050459,61247.0,61246.0,0.001]
[1727922391899,0.02723159,61247.0,61246.0,0.243875]
[1727922392556,0.001636,61247.0,61246.0,0.239875]
[1727922392786,0.001636,61247.0,61246.0,0.243875]
[1727922392997,0.001636,61247.0,61246.0,0.245875]
[1727922393218,0.001636,61247.0,61246.0,0.243875]
[1727922393424,0.001636,61247.0,61246.0,0.239875]
[1727922393632,0.001636,61247.0,61246.0,0.244875]
[1727922394083,0.001636,61247.0,61246.0,0.247875]
[1727922394983,0.001636,61247.0,61246.0,0.280625]
[1727922395663,0.001636,61247.0,61246.0,0.29898917]
[1727922395875,0.001636,61247.0,61246.0,0.29281261]
[1727922396086,0.003636,61247.0,61246.0,0.31298917]
[1727922396302,0.003636,61247.0,61246.0,0.47999932]
[1727922396512,0.002636,61247.0,61246.0,0.46817588]
[1727922396724,0.002636,61247.0,61246.0,0.47017588]
[1727922397171,0.001636,61247.0,61246.0,0.45617588]
[1727922397385,0.002636,61247.0,61246.0,0.46617588]
[1727922397604,0.002636,61247.0,61246.0,0.45617588]
[1727922397821,0.001636,61247.0,61246.0,0.45417588]
[1727922398039,0.001636,61247.0,61246.0,0.30498917]
[1727922398499,0.001636,61247.0,61246.0,0.29098917]
[1727922398938,0.001636,61247.0,61246.0,0.31798917]
[1727922399379,0.02722758,61247.0,61246.0,0.29098917]
[1727922399593,0.02722758,61247.0,61246.0,0.31198917]
[1727922402241,0.001636,61247.0,61246.0,0.31202869]
[1727922405119,0.001636,61247.0,61246.0,0.34149937]
[1727922405323,0.001636,61247.0,61246.0,0.293625]
[1727922405560,0.001636,61247.0,61246.0,0.34151976]
[1727922406220,0.001636,61247.0,61246.0,0.30876976]
[1727922406938,0.001636,61247.0,61246.0,0.34151976]
[1727922408653,0.001636,61247.0,61246.0,0.293625]
[1727922415068,0.001636,61247.0,61246.0,0.217025]
[1727922418206,0.001636,61247.0,61246.0,0.21794827]
[1727922418423,0.001636,61247.0,61246.0,0.22028996]
[1727922418888,0.02722826,61247.0,61246.0,0.22028996]
[1727922419106,0.02722826,61247.0,61246.0,0.217025]
[1727922421105,0.19050126,61247.0,61246.0,0.05375]
[1727922421368,0.02722826,61247.0,61246.0,0.05375]
[1727922423040,0.19050126,61247.0,61246.0,0.05375]
[1727922423927,0.164909,61247.0,61246.0,0.05375]
[1727922424151,0.164909,61247.0,61246.0,0.04275]
[1727922424371,0.164909,61247.0,61246.0,0.004]
[1727922424621,0.261309,61247.0,61246.0,0.007]
[1727922425959,0.342909,61247.0,61246.0,0.007]
[1727922426205,0.3919358,61247.0,61246.0,0.007]
[1727922426932,0.342909,61247.0,61246.0,0.007]
[1727922427145,0.44204429,61247.0,61246.0,0.007]
[1727922427368,0.36850409,61247.0,61246.0,0.007]
[1727922427605,0.4174981,61247.0,61246.0,0.007]
[1727922427818,0.36850409,61247.0,61246.0,0.007]
[1727922434489,0.342909,61247.0,61246.0,0.007]
[1727922436289,0.342909,61247.0,61246.0,0.003]
[1727922436568,0.163299,61237.0,61234.0,0.163307]
[1727922436864,0.163299,61238.0,61233.0,0.163309]
[1727922437113,0.326584,61240.0,61232.0,0.24504799]
[1727922437371,0.163302,61236.0,61232.0,0.163313]
[1727922437817,0.163302,61236.0,61234.0,0.001]
[1727922438032,0.163305,61235.0,61234.0,0.001]
[1727922438252,0.163305,61235.0,61231.0,0.163314]
[1727922438688,0.18890151,61235.0,61231.0,0.163314]
[1727922439313,0.18890151,61235.0,61233.0,0.001]
[1727922439755,0.18890151,61235.0,61231.0,0.163314]
[1727922439945,0.163308,61234.0,61231.0,0.002]
[1727922440191,0.163308,61234.0,61231.0,0.003]
[1727922440451,0.163308,61234.0,61230.0,0.163317]
[1727922440736,0.02559651,61235.0,61233.0,0.001]
[1727922440971,0.18890251,61235.0,61233.0,0.002]
[1727922441393,0.163307,61234.0,61233.0,0.002]
[1727922442298,0.163307,61234.0,61231.0,0.002]
[1727922442509,0.163307,61234.0,61230.0,0.166317]
[1727922442744,0.163307,61234.0,61230.0,0.168317]
[1727922443188,0.163307,61234.0,61230.0,0.163317]
[1727922443411,0.163307,61234.0,61233.0,0.005]
[1727922443858,0.163307,61234.0,61233.0,0.003]
[1727922444075,0.163321,61229.0,61228.0,0.033568]
[1727922444544,0.163321,61229.0,61228.0,0.000818]
[1727922446547,0.164321,61229.0,61228.0,0.000818]
[1727922447253,0.18892189,61229.0,61228.0,0.000818]
[1727922447684,0.18892189,61229.0,61228.0,0.001818]
[1727922448818,0.18892189,61229.0,61228.0,0.003818]
[1727922449254,0.1964726,61229.0,61228.0,0.003818]
[1727922449484,0.1964726,61229.0,61228.0,0.001818]
[1727922449923,0.1964726,61229.0,61228.0,0.000818]
[1727922450137,0.1974726,61229.0,61228.0,0.000818]
[1727922451423,0.17187171,61229.0,61228.0,0.000818]
[1727922454335,0.19747317,61229.0,61228.0,0.000818]
[1727922454552,0.17187171,61229.0,61228.0,0.000818]
[1727922454788,0.19747317,61229.0,61228.0,0.000818]
[1727922459977,0.17187171,61229.0,61228.0,0.000818]
[1727922466371,0.17087171,61229.0,61228.0,0.000818]
[1727922466985,0.19647317,61229.0,61228.0,0.000818]
[1727922468493,0.19647317,61229.0,61228.0,0.001818]
[1727922470469,0.17087171,61229.0,61228.0,0.001818]
[1727922470921,0.0331521,61229.0,61228.0,0.165141]
[1727922471136,0.0331521,61229.0,61228.0,0.213168]
[1727922471354,0.1964731,61229.0,61228.0,0.116468]
[1727922471577,0.02560139,61229.0,61228.0,0.116468]
[1727922471795,0.03310279,61229.0,61228.0,0.116468]
[1727922472014,0.03310279,61229.0,61228.0,0.115468]
[1727922472253,0.03310279,61229.0,61228.0,0.123468]
[1727922473102,0.03473879,61229.0,61228.0,0.130468]
[1727922474369,0.0091374,61229.0,61228.0,0.130468]
[1727922477899,0.0347381,61229.0,61228.0,0.130468]
[1727922478120,0.0347381,61229.0,61228.0,0.393691]
[1727922478555,0.0272367,61229.0,61228.0,0.41215714]
[1727922479020,0.0272367,61229.0,61228.0,0.43149394]
[1727922479274,0.0272367,61229.0,61228.0,0.41215462]
[1727922479492,0.0272367,61229.0,61228.0,0.393691]